[Event "Late-Titled-Tuesday-Blitz-September-12-2023"]
[Site "Chess.com"]
[Date "2023.09.12"]
[Round "1"]
[White "LuisFSiles"]
[Black "Ali_rastbod"]
[Result "0-1"]
[WhiteElo "2376"]
[BlackElo "2703"]
[TimeControl "180+1"]
[EndTime "14:07:43 PDT"]
[Termination "Ali_rastbod won by resignation"]

1. e4 {[%clk 0:03:00.9]} 1... Nc6 {[%clk 0:02:56.5]} 2. Nf3 {[%clk 0:03:00.2]}
2... g6 {[%clk 0:01:51.9]} 3. d4 {[%clk 0:02:58.3]} 3... Bg7 {[%clk 0:01:52.1]}
4. d5 {[%clk 0:02:55.9]} 4... Nb8 {[%clk 0:01:52.5]} 5. c4 {[%clk 0:02:51.9]}
5... d6 {[%clk 0:01:53.1]} 6. h3 {[%clk 0:02:49.8]} 6... Nf6 {[%clk 0:01:53.6]}
7. Nc3 {[%clk 0:02:47.6]} 7... O-O {[%clk 0:01:54.2]} 8. Bd3 {[%clk 0:02:46.5]}
8... c6 {[%clk 0:01:54.9]} 9. O-O {[%clk 0:02:42.7]} 9... Nbd7 {[%clk
0:01:55.4]} 10. Be3 {[%clk 0:02:36.7]} 10... Nc5 {[%clk 0:01:55.3]} 11. Bc2
{[%clk 0:02:36.8]} 11... a5 {[%clk 0:01:54.6]} 12. Nd4 {[%clk 0:02:29.9]} 12...
Qb6 {[%clk 0:01:51.1]} 13. Nb3 {[%clk 0:02:25.8]} 13... Nfd7 {[%clk 0:01:49.5]}
14. Nxc5 {[%clk 0:02:11.6]} 14... Nxc5 {[%clk 0:01:49]} 15. Na4 {[%clk
0:02:03.5]} 15... Qb4 {[%clk 0:01:48]} 16. Nxc5 {[%clk 0:01:58.8]} 16... dxc5
{[%clk 0:01:48.9]} 17. Rb1 {[%clk 0:01:52.5]} 17... Qxc4 {[%clk 0:01:44.7]} 18.
Bd3 {[%clk 0:01:37.6]} 18... Qxa2 {[%clk 0:01:38.5]} 19. Bxc5 {[%clk 0:01:34.5]}
19... cxd5 {[%clk 0:01:36.7]} 20. Qe2 {[%clk 0:00:49.3]} 20... Be6 {[%clk
0:01:35]} 21. e5 {[%clk 0:00:43.1]} 21... a4 {[%clk 0:01:23.6]} 22. Bxe7 {[%clk
0:00:39.8]} 22... Rfe8 {[%clk 0:01:21.6]} 23. Bf6 {[%clk 0:00:40.4]} 23... d4
{[%clk 0:01:00.7]} 24. Bb5 {[%clk 0:00:37.2]} 24... Rec8 {[%clk 0:00:55.3]} 25.
Bxg7 {[%clk 0:00:33.1]} 25... Kxg7 {[%clk 0:00:55.4]} 26. f4 {[%clk 0:00:29.1]}
26... a3 {[%clk 0:00:46.3]} 27. f5 {[%clk 0:00:28.3]} 27... Bxf5 {[%clk
0:00:43.9]} 28. Rxf5 {[%clk 0:00:28]} 28... Qxb1+ {[%clk 0:00:40.8]} 29. Rf1
{[%clk 0:00:27.9]} 29... Qxf1+ {[%clk 0:00:34.6]} 30. Qxf1 {[%clk 0:00:21.2]}
30... axb2 {[%clk 0:00:25.6]} 31. Qf6+ {[%clk 0:00:19.5]} 31... Kg8 {[%clk
0:00:25.6]} 32. Bd3 {[%clk 0:00:20.1]} 32... Rc1+ {[%clk 0:00:22.2]} 33. Kh2
{[%clk 0:00:19.7]} 33... b1=Q {[%clk 0:00:22.3]} 34. Bxb1 {[%clk 0:00:19.4]}
34... Rxb1 {[%clk 0:00:23.2]} 35. e6 {[%clk 0:00:20.3]} 35... Rf8 {[%clk
0:00:23.7]} 36. exf7+ {[%clk 0:00:20.7]} 36... Rxf7 {[%clk 0:00:24.1]} 37. Qd8+
{[%clk 0:00:21]} 37... Rf8 {[%clk 0:00:17.2]} 38. Qd5+ {[%clk 0:00:21.2]} 38...
Kg7 {[%clk 0:00:16.7]} 39. Qxd4+ {[%clk 0:00:21.5]} 39... Rf6 {[%clk 0:00:17]}
40. Qd7+ {[%clk 0:00:21.7]} 40... Kh6 {[%clk 0:00:17.1]} 41. Qd2+ {[%clk
0:00:21.9]} 41... g5 {[%clk 0:00:13.2]} 42. h4 {[%clk 0:00:19.4]} 42... Rb5
{[%clk 0:00:13.8]} 43. Qd4 {[%clk 0:00:16.7]} 43... Rbf5 {[%clk 0:00:12.1]} 44.
Qg4 {[%clk 0:00:15.1]} 44... gxh4 {[%clk 0:00:10.6]} 45. Qxh4+ {[%clk
0:00:15.3]} 45... Rh5 {[%clk 0:00:10.7]} 0-1

[Event "Late-Titled-Tuesday-Blitz-September-12-2023"]
[Site "Chess.com"]
[Date "2023.09.12"]
[Round "1"]
[White "KVAIDAN"]
[Black "noblerone"]
[Result "1-0"]
[WhiteElo "2253"]
[BlackElo "2528"]
[TimeControl "180+1"]
[EndTime "14:07:46 PDT"]
[Termination "KVAIDAN won by checkmate"]

1. f4 {[%clk 0:03:00]} 1... c5 {[%clk 0:02:59.8]} 2. Nf3 {[%clk 0:03:00.4]} 2...
Nc6 {[%clk 0:03:00.2]} 3. d3 {[%clk 0:03:00.7]} 3... d5 {[%clk 0:02:58]} 4. e3
{[%clk 0:03:00.3]} 4... g6 {[%clk 0:02:57.2]} 5. Be2 {[%clk 0:03:00.7]} 5... Bg7
{[%clk 0:02:57.8]} 6. O-O {[%clk 0:03:01.3]} 6... Nh6 {[%clk 0:02:49.3]} 7. e4
{[%clk 0:02:57.5]} 7... dxe4 {[%clk 0:02:47.3]} 8. dxe4 {[%clk 0:02:57.8]} 8...
Qxd1 {[%clk 0:02:48.2]} 9. Rxd1 {[%clk 0:02:57.2]} 9... Bg4 {[%clk 0:02:36.5]}
10. c3 {[%clk 0:02:56.5]} 10... O-O {[%clk 0:02:32]} 11. Be3 {[%clk 0:02:56.6]}
11... b6 {[%clk 0:02:30.9]} 12. Nbd2 {[%clk 0:02:53.8]} 12... Rfd8 {[%clk
0:02:24.5]} 13. Bb5 {[%clk 0:02:51.8]} 13... Na5 {[%clk 0:02:16.9]} 14. Rac1
{[%clk 0:02:43.5]} 14... Rab8 {[%clk 0:02:10.1]} 15. b4 {[%clk 0:02:38.6]} 15...
Nb7 {[%clk 0:01:59.9]} 16. Nc4 {[%clk 0:02:31.2]} 16... Nd6 {[%clk 0:01:50.7]}
17. Nxd6 {[%clk 0:02:29.1]} 17... exd6 {[%clk 0:01:51.6]} 18. a4 {[%clk
0:02:19.6]} 18... Be6 {[%clk 0:01:34.3]} 19. Ng5 {[%clk 0:02:10.9]} 19... Bb3
{[%clk 0:01:31.6]} 20. Re1 {[%clk 0:02:08.9]} 20... Ng4 {[%clk 0:01:31.8]} 21.
Bd2 {[%clk 0:01:58]} 21... h6 {[%clk 0:01:30.3]} 22. Nf3 {[%clk 0:01:57.5]}
22... Rbc8 {[%clk 0:01:08.3]} 23. h3 {[%clk 0:01:53.1]} 23... Nf6 {[%clk
0:01:07.1]} 24. g4 {[%clk 0:01:44.4]} 24... Ne8 {[%clk 0:00:59.4]} 25. Be3
{[%clk 0:01:36.2]} 25... Nc7 {[%clk 0:00:56.1]} 26. Bc6 {[%clk 0:01:32.6]} 26...
cxb4 {[%clk 0:00:48.1]} 27. cxb4 {[%clk 0:01:32.5]} 27... Na6 {[%clk 0:00:48.3]}
28. Bb7 {[%clk 0:01:23.9]} 28... Rxc1 {[%clk 0:00:47.4]} 29. Rxc1 {[%clk
0:01:24.5]} 29... Nb8 {[%clk 0:00:36]} 30. a5 {[%clk 0:01:22.1]} 30... Nd7
{[%clk 0:00:34.9]} 31. Rc7 {[%clk 0:01:19.8]} 31... bxa5 {[%clk 0:00:27.4]} 32.
Bc6 {[%clk 0:01:15.7]} 32... a4 {[%clk 0:00:24.6]} 33. Bxd7 {[%clk 0:01:09.8]}
33... a3 {[%clk 0:00:21.5]} 34. Nd2 {[%clk 0:01:10.2]} 34... Be6 {[%clk
0:00:14.4]} 35. Bxe6 {[%clk 0:01:08.8]} 35... fxe6 {[%clk 0:00:15.3]} 36. Rxa7
{[%clk 0:01:08.3]} 36... Bc3 {[%clk 0:00:14]} 37. Nc4 {[%clk 0:01:04.2]} 37...
Bxb4 {[%clk 0:00:13.5]} 38. Nxa3 {[%clk 0:01:04.5]} 38... Rc8 {[%clk 0:00:13]}
39. Nb5 {[%clk 0:01:02.1]} 39... Rc2 {[%clk 0:00:11.9]} 40. Nc7 {[%clk
0:00:56.2]} 40... d5 {[%clk 0:00:10.5]} 41. Nxe6 {[%clk 0:00:53.9]} 41... dxe4
{[%clk 0:00:10.7]} 42. Bd4 {[%clk 0:00:53.4]} 42... Bf8 {[%clk 0:00:09.4]} 43.
Ra8 {[%clk 0:00:52.3]} 43... Kf7 {[%clk 0:00:09.9]} 44. Nxf8 {[%clk 0:00:52.5]}
44... e3 {[%clk 0:00:10.3]} 45. Bxe3 {[%clk 0:00:52]} 45... h5 {[%clk
0:00:10.2]} 46. gxh5 {[%clk 0:00:52]} 46... gxh5 {[%clk 0:00:11.1]} 47. f5
{[%clk 0:00:50.7]} 47... Kf6 {[%clk 0:00:11.1]} 48. Ra5 {[%clk 0:00:49.3]} 48...
h4 {[%clk 0:00:10.5]} 49. Bd4+ {[%clk 0:00:48.3]} 49... Kg5 {[%clk 0:00:10.3]}
50. f6+ {[%clk 0:00:47]} 50... Kf4 {[%clk 0:00:10.3]} 51. f7 {[%clk 0:00:47.2]}
51... Kg3 {[%clk 0:00:10.1]} 52. Ra3+ {[%clk 0:00:45.5]} 52... Kf4 {[%clk
0:00:10.5]} 53. Ne6+ {[%clk 0:00:45.2]} 53... Ke4 {[%clk 0:00:10.1]} 54. f8=Q
{[%clk 0:00:44.8]} 54... Rc1+ {[%clk 0:00:11]} 55. Kg2 {[%clk 0:00:44.5]} 55...
Rc2+ {[%clk 0:00:10.9]} 56. Bf2 {[%clk 0:00:45]} 56... Kd5 {[%clk 0:00:10.2]}
57. Nf4+ {[%clk 0:00:43.8]} 57... Ke4 {[%clk 0:00:10.3]} 58. Re3+ {[%clk
0:00:42.7]} 58... Kd4 {[%clk 0:00:10]} 59. Qd8+ {[%clk 0:00:43.2]} 59... Kc4
{[%clk 0:00:10]} 60. Qd3+ {[%clk 0:00:41.5]} 60... Kb4 {[%clk 0:00:09.1]} 61.
Qb3+ {[%clk 0:00:41.9]} 61... Kc5 {[%clk 0:00:08.8]} 62. Qxc2+ {[%clk
0:00:41.2]} 62... Kd4 {[%clk 0:00:09.7]} 63. Qc3# {[%clk 0:00:41.1]} 1-0

[Event "Late-Titled-Tuesday-Blitz-September-12-2023"]
[Site "Chess.com"]
[Date "2023.09.12"]
[Round "1"]
[White "Chessdude1987"]
[Black "IlanSchnaider"]
[Result "1-0"]
[WhiteElo "2429"]
[BlackElo "2744"]
[TimeControl "180+1"]
[EndTime "14:07:48 PDT"]
[Termination "Chessdude1987 won on time"]

1. e4 {[%clk 0:03:00.9]} 1... c5 {[%clk 0:02:57.7]} 2. Nf3 {[%clk 0:03:00.6]}
2... d6 {[%clk 0:02:57.9]} 3. Bc4 {[%clk 0:03:01]} 3... Nf6 {[%clk 0:02:56.3]}
4. d3 {[%clk 0:03:01.6]} 4... Nc6 {[%clk 0:02:56]} 5. c3 {[%clk 0:03:01.4]} 5...
e6 {[%clk 0:02:56.1]} 6. Bb3 {[%clk 0:03:01.4]} 6... Be7 {[%clk 0:02:56.2]} 7.
O-O {[%clk 0:03:01]} 7... O-O {[%clk 0:02:56.7]} 8. Re1 {[%clk 0:03:01.2]} 8...
h6 {[%clk 0:02:53.8]} 9. d4 {[%clk 0:03:01]} 9... e5 {[%clk 0:02:48.5]} 10. h3
{[%clk 0:03:00.6]} 10... b5 {[%clk 0:02:37.7]} 11. a4 {[%clk 0:02:54]} 11... b4
{[%clk 0:02:34.2]} 12. dxc5 {[%clk 0:02:29.4]} 12... dxc5 {[%clk 0:02:33.4]} 13.
Qe2 {[%clk 0:02:28.5]} 13... a5 {[%clk 0:02:21.8]} 14. Nbd2 {[%clk 0:02:27.9]}
14... Ba6 {[%clk 0:02:20.7]} 15. Nc4 {[%clk 0:02:23.4]} 15... Qc7 {[%clk
0:02:19.7]} 16. Nh4 {[%clk 0:02:20.5]} 16... Bc8 {[%clk 0:01:53.5]} 17. Ne3
{[%clk 0:01:44.9]} 17... Be6 {[%clk 0:01:35]} 18. Nd5 {[%clk 0:01:44.5]} 18...
Qd8 {[%clk 0:01:26.4]} 19. Nxe7+ {[%clk 0:01:06.3]} 19... Nxe7 {[%clk
0:01:13.1]} 20. Bxe6 {[%clk 0:00:57.5]} 20... fxe6 {[%clk 0:01:14]} 21. Qc4
{[%clk 0:00:57.5]} 21... Qb6 {[%clk 0:01:11.1]} 22. Be3 {[%clk 0:00:56]} 22...
Rac8 {[%clk 0:01:11.2]} 23. b3 {[%clk 0:00:43]} 23... bxc3 {[%clk 0:01:06.2]}
24. Rac1 {[%clk 0:00:42.7]} 24... Kh7 {[%clk 0:00:57.3]} 25. Rxc3 {[%clk
0:00:42.5]} 25... Nd7 {[%clk 0:00:35.8]} 26. Rd1 {[%clk 0:00:42.3]} 26... Rfd8
{[%clk 0:00:27]} 27. Rcd3 {[%clk 0:00:41.2]} 27... Nf6 {[%clk 0:00:24.5]} 28.
Rxd8 {[%clk 0:00:37.8]} 28... Rxd8 {[%clk 0:00:25.4]} 29. Rxd8 {[%clk
0:00:36.8]} 29... Qxd8 {[%clk 0:00:26.3]} 30. Bxc5 {[%clk 0:00:34.2]} 30... Qc7
{[%clk 0:00:15.3]} 31. Qb5 {[%clk 0:00:18.8]} 31... Nxe4 {[%clk 0:00:11.4]} 32.
Bxe7 {[%clk 0:00:13.6]} 32... Qxe7 {[%clk 0:00:12.3]} 33. Nf3 {[%clk 0:00:11.8]}
33... Nf6 {[%clk 0:00:06]} 34. Nxe5 {[%clk 0:00:11]} 34... Nd5 {[%clk
0:00:04.9]} 35. Qxa5 {[%clk 0:00:10]} 35... Qf6 {[%clk 0:00:05.3]} 36. Qe1
{[%clk 0:00:09.9]} 36... Nf4 {[%clk 0:00:04.3]} 37. Ng4 {[%clk 0:00:08.9]} 37...
Qf5 {[%clk 0:00:03.5]} 38. a5 {[%clk 0:00:07.8]} 38... Qd5 {[%clk 0:00:02.3]}
39. f3 {[%clk 0:00:05.7]} 39... Nd3 {[%clk 0:00:02.7]} 40. Qe4+ {[%clk
0:00:05.4]} 40... Qxe4 {[%clk 0:00:03]} 41. fxe4 {[%clk 0:00:05.8]} 41... Nc5
{[%clk 0:00:02.4]} 42. b4 {[%clk 0:00:06]} 42... Na6 {[%clk 0:00:01.1]} 43. b5
{[%clk 0:00:06.1]} 1-0

[Event "Late-Titled-Tuesday-Blitz-September-12-2023"]
[Site "Chess.com"]
[Date "2023.09.12"]
[Round "1"]
[White "aNaartjieZA"]
[Black "ljm509"]
[Result "0-1"]
[WhiteElo "2577"]
[BlackElo "2375"]
[TimeControl "180+1"]
[EndTime "14:07:51 PDT"]
[Termination "ljm509 won by checkmate"]

1. e4 {[%clk 0:03:00.9]} 1... e6 {[%clk 0:03:00]} 2. d3 {[%clk 0:03:00.5]} 2...
d5 {[%clk 0:02:59.9]} 3. Nd2 {[%clk 0:03:01]} 3... c5 {[%clk 0:02:57.5]} 4. Ngf3
{[%clk 0:03:01.1]} 4... Nc6 {[%clk 0:02:56.9]} 5. g3 {[%clk 0:03:01.5]} 5...
dxe4 {[%clk 0:02:56.7]} 6. dxe4 {[%clk 0:03:02.4]} 6... Nf6 {[%clk 0:02:56.6]}
7. Bg2 {[%clk 0:03:02.4]} 7... Be7 {[%clk 0:02:56.9]} 8. O-O {[%clk 0:03:02.4]}
8... O-O {[%clk 0:02:56.6]} 9. e5 {[%clk 0:03:02.7]} 9... Nd5 {[%clk 0:02:53.9]}
10. Re1 {[%clk 0:03:02.4]} 10... b5 {[%clk 0:02:52.5]} 11. Nf1 {[%clk
0:03:01.5]} 11... Bb7 {[%clk 0:02:49.8]} 12. h4 {[%clk 0:03:01.2]} 12... Qc7
{[%clk 0:02:43.7]} 13. N1h2 {[%clk 0:02:59.4]} 13... Rfd8 {[%clk 0:02:42.4]} 14.
Qe2 {[%clk 0:02:59.5]} 14... Nd4 {[%clk 0:02:31.8]} 15. Nxd4 {[%clk 0:02:59]}
15... cxd4 {[%clk 0:02:32.2]} 16. Bg5 {[%clk 0:02:50.5]} 16... a6 {[%clk
0:02:21.3]} 17. Nf3 {[%clk 0:02:41.1]} 17... Nb4 {[%clk 0:02:15.2]} 18. Bxe7
{[%clk 0:02:34]} 18... Qxe7 {[%clk 0:02:13.5]} 19. a3 {[%clk 0:02:34.2]} 19...
Nc6 {[%clk 0:02:10.8]} 20. Rad1 {[%clk 0:02:33.6]} 20... Rd7 {[%clk 0:02:07.3]}
21. Ng5 {[%clk 0:02:33.3]} 21... h6 {[%clk 0:02:01.2]} 22. Nf3 {[%clk
0:02:33.1]} 22... Rad8 {[%clk 0:01:59.9]} 23. Rd3 {[%clk 0:02:24.3]} 23... Na5
{[%clk 0:01:57.9]} 24. Red1 {[%clk 0:01:59.4]} 24... Nc4 {[%clk 0:01:49.5]} 25.
Rb1 {[%clk 0:01:42.2]} 25... Qc5 {[%clk 0:01:42.4]} 26. b4 {[%clk 0:01:37.1]}
26... Qc7 {[%clk 0:01:36.8]} 27. Re1 {[%clk 0:01:23.7]} 27... Nb2 {[%clk
0:01:32.3]} 28. Rb3 {[%clk 0:01:20.8]} 28... d3 {[%clk 0:01:22.2]} 29. cxd3
{[%clk 0:01:19.1]} 29... Nxd3 {[%clk 0:01:23.1]} 30. Rf1 {[%clk 0:01:12]} 30...
Bxf3 {[%clk 0:01:22]} 31. Qxf3 {[%clk 0:01:06.9]} 31... Nxe5 {[%clk 0:01:19]}
32. Qe4 {[%clk 0:01:07.1]} 32... Nc4 {[%clk 0:01:17.4]} 33. Rc3 {[%clk
0:01:06.8]} 33... Qb6 {[%clk 0:01:11.7]} 34. Qf4 {[%clk 0:00:59.7]} 34... Rd4
{[%clk 0:01:07]} 35. Qc1 {[%clk 0:00:56.4]} 35... Rd2 {[%clk 0:01:03.9]} 36. a4
{[%clk 0:00:56]} 36... Qd4 {[%clk 0:01:01.7]} 37. axb5 {[%clk 0:00:54.8]} 37...
axb5 {[%clk 0:01:02.6]} 38. Rf3 {[%clk 0:00:53.6]} 38... Ne5 {[%clk 0:01:00.2]}
39. Re3 {[%clk 0:00:52.7]} 39... Ng4 {[%clk 0:00:57.3]} 40. Rf3 {[%clk
0:00:52.8]} 40... Qxb4 {[%clk 0:00:54.9]} 41. Rf4 {[%clk 0:00:52.8]} 41... R2d4
{[%clk 0:00:52.7]} 42. Rxd4 {[%clk 0:00:53]} 42... Qxd4 {[%clk 0:00:51.9]} 43.
Qb1 {[%clk 0:00:52.2]} 43... b4 {[%clk 0:00:48.5]} 44. Bf3 {[%clk 0:00:52.6]}
44... Ne5 {[%clk 0:00:46.3]} 45. Be2 {[%clk 0:00:52.9]} 45... Qc3 {[%clk
0:00:33.8]} 46. Rc1 {[%clk 0:00:52.6]} 46... Qa3 {[%clk 0:00:32.6]} 47. Rc5
{[%clk 0:00:51]} 47... Ng6 {[%clk 0:00:20.7]} 48. h5 {[%clk 0:00:46.2]} 48...
Ne7 {[%clk 0:00:20.2]} 49. Rb5 {[%clk 0:00:46.3]} 49... Nd5 {[%clk 0:00:20.3]}
50. Bc4 {[%clk 0:00:45.1]} 50... Nc3 {[%clk 0:00:20.4]} 51. Qxb4 {[%clk
0:00:45.2]} 51... Nxb5 {[%clk 0:00:19.6]} 52. Qxb5 {[%clk 0:00:45.5]} 52... Qc1+
{[%clk 0:00:19.5]} 53. Kg2 {[%clk 0:00:45.7]} 53... Qg5 {[%clk 0:00:19.7]} 54.
Qb6 {[%clk 0:00:44.8]} 54... Rc8 {[%clk 0:00:19.3]} 55. Be2 {[%clk 0:00:44.4]}
55... Qd5+ {[%clk 0:00:18.2]} 56. Bf3 {[%clk 0:00:44.5]} 56... Qc5 {[%clk
0:00:19]} 57. Qb7 {[%clk 0:00:44.6]} 57... Rd8 {[%clk 0:00:19]} 58. Be4 {[%clk
0:00:44.3]} 58... f5 {[%clk 0:00:18.7]} 59. Bf3 {[%clk 0:00:39.2]} 59... Rd2
{[%clk 0:00:18.4]} 60. Qb8+ {[%clk 0:00:38.9]} 60... Kh7 {[%clk 0:00:18.1]} 61.
Qe8 {[%clk 0:00:38.8]} 61... Qxf2+ {[%clk 0:00:17.8]} 62. Kh3 {[%clk 0:00:39.2]}
62... Qh2# {[%clk 0:00:17.5]} 0-1

[Event "Late-Titled-Tuesday-Blitz-September-12-2023"]
[Site "Chess.com"]
[Date "2023.09.12"]
[Round "1"]
[White "dropstoneDP"]
[Black "maksimys18"]
[Result "1-0"]
[WhiteElo "3018"]
[BlackElo "2488"]
[TimeControl "180+1"]
[EndTime "14:07:53 PDT"]
[Termination "dropstoneDP won by checkmate"]

1. e4 {[%clk 0:02:48.1]} 1... e6 {[%clk 0:02:59.9]} 2. d4 {[%clk 0:02:47.8]}
2... d5 {[%clk 0:02:56.7]} 3. Nd2 {[%clk 0:02:47.8]} 3... Nf6 {[%clk 0:02:56]}
4. e5 {[%clk 0:02:46.4]} 4... Nfd7 {[%clk 0:02:55.2]} 5. f4 {[%clk 0:02:40]}
5... c5 {[%clk 0:02:54.3]} 6. c3 {[%clk 0:02:40.6]} 6... Nc6 {[%clk 0:02:48.3]}
7. Ndf3 {[%clk 0:02:40.5]} 7... f6 {[%clk 0:02:39.7]} 8. Bd3 {[%clk 0:02:39]}
8... cxd4 {[%clk 0:02:39.4]} 9. cxd4 {[%clk 0:02:39.9]} 9... Bb4+ {[%clk
0:02:39.2]} 10. Bd2 {[%clk 0:02:37.9]} 10... O-O {[%clk 0:02:39.1]} 11. Ne2
{[%clk 0:02:37.4]} 11... fxe5 {[%clk 0:02:38.3]} 12. fxe5 {[%clk 0:02:25.9]}
12... Rxf3 {[%clk 0:02:24.4]} 13. gxf3 {[%clk 0:02:26.8]} 13... Qh4+ {[%clk
0:02:24]} 14. Kf1 {[%clk 0:02:27.3]} 14... Qh3+ {[%clk 0:02:04.9]} 15. Kf2
{[%clk 0:02:27.2]} 15... Ndxe5 {[%clk 0:01:49.5]} 16. dxe5 {[%clk 0:02:27]}
16... Nxe5 {[%clk 0:01:39.1]} 17. Nf4 {[%clk 0:01:14.8]} 17... Bc5+ {[%clk
0:01:27.2]} 18. Be3 {[%clk 0:01:14.3]} 18... Qh4+ {[%clk 0:01:27]} 19. Ke2
{[%clk 0:01:11.7]} 19... Bxe3 {[%clk 0:01:24.8]} 20. Kxe3 {[%clk 0:01:09.9]}
20... d4+ {[%clk 0:01:24.1]} 21. Kd2 {[%clk 0:00:15.6]} 21... Qxf4+ {[%clk
0:01:23.6]} 22. Kc2 {[%clk 0:00:16]} 22... Bd7 {[%clk 0:01:18.8]} 23. b3 {[%clk
0:00:08.5]} 23... Rc8+ {[%clk 0:01:13.7]} 24. Kb2 {[%clk 0:00:08.9]} 24... Rc3
{[%clk 0:01:13.2]} 25. Be4 {[%clk 0:00:09.1]} 25... Nxf3 {[%clk 0:00:56.1]} 26.
Bxf3 {[%clk 0:00:09.4]} 26... Rxf3 {[%clk 0:00:52.7]} 27. Rc1 {[%clk 0:00:09.5]}
27... Bc6 {[%clk 0:00:51.6]} 28. Re1 {[%clk 0:00:08.5]} 28... Rf2+ {[%clk
0:00:49.5]} 29. Rc2 {[%clk 0:00:03.3]} 29... e5 {[%clk 0:00:46.1]} 30. Qc1
{[%clk 0:00:01.8]} 30... Rxc2+ {[%clk 0:00:43]} 31. Qxc2 {[%clk 0:00:02.1]}
31... e4 {[%clk 0:00:36.5]} 32. Qc4+ {[%clk 0:00:02.3]} 32... Kh8 {[%clk
0:00:26.8]} 33. Qxd4 {[%clk 0:00:03.2]} 33... Qxh2+ {[%clk 0:00:25.5]} 34. Ka3
{[%clk 0:00:03.8]} 34... h6 {[%clk 0:00:22.4]} 35. Rg1 {[%clk 0:00:03.3]} 35...
Qc7 {[%clk 0:00:20.5]} 36. Rg6 {[%clk 0:00:03.8]} 36... Qe7+ {[%clk 0:00:20.4]}
37. Kb2 {[%clk 0:00:03.7]} 37... e3 {[%clk 0:00:20.8]} 38. Rxh6+ {[%clk
0:00:03.9]} 38... Kg8 {[%clk 0:00:21.4]} 39. Qc4+ {[%clk 0:00:03.7]} 39... Qf7
{[%clk 0:00:17.8]} 40. Rh8+ {[%clk 0:00:04]} 40... Kxh8 {[%clk 0:00:18.4]} 41.
Qxf7 {[%clk 0:00:04.9]} 41... a5 {[%clk 0:00:18.2]} 42. Kc3 {[%clk 0:00:04.7]}
42... a4 {[%clk 0:00:18.1]} 43. bxa4 {[%clk 0:00:04.9]} 43... Bxa4 {[%clk
0:00:18.4]} 44. Kd3 {[%clk 0:00:05.1]} 44... e2 {[%clk 0:00:17.4]} 45. Qh5+
{[%clk 0:00:04.7]} 45... Kg8 {[%clk 0:00:17.5]} 46. Kd2 {[%clk 0:00:04.4]} 46...
Bd1 {[%clk 0:00:17.3]} 47. Qd5+ {[%clk 0:00:04.8]} 47... Kh7 {[%clk 0:00:17.6]}
48. Qxb7 {[%clk 0:00:05.3]} 48... Kh6 {[%clk 0:00:17.7]} 49. a4 {[%clk
0:00:04.3]} 49... g5 {[%clk 0:00:18.3]} 50. a5 {[%clk 0:00:04.7]} 50... Kh5
{[%clk 0:00:19]} 51. a6 {[%clk 0:00:05.2]} 51... Kh4 {[%clk 0:00:19.5]} 52. a7
{[%clk 0:00:05.9]} 52... g4 {[%clk 0:00:20.3]} 53. Ke1 {[%clk 0:00:06.1]} 53...
g3 {[%clk 0:00:20.4]} 54. a8=Q {[%clk 0:00:07]} 54... Kh3 {[%clk 0:00:21.1]} 55.
Qh1+ {[%clk 0:00:05.3]} 55... Kg4 {[%clk 0:00:21.7]} 56. Qaf3+ {[%clk
0:00:05.7]} 56... Kg5 {[%clk 0:00:21.5]} 57. Qhh5# {[%clk 0:00:06.6]} 1-0

[Event "Late-Titled-Tuesday-Blitz-September-12-2023"]
[Site "Chess.com"]
[Date "2023.09.12"]
[Round "1"]
[White "sofaceindisguise"]
[Black "wild3000"]
[Result "1-0"]
[WhiteElo "2788"]
[BlackElo "2429"]
[TimeControl "180+1"]
[EndTime "14:07:54 PDT"]
[Termination "sofaceindisguise won on time"]

1. d4 {[%clk 0:03:00.9]} 1... d5 {[%clk 0:02:59.6]} 2. c4 {[%clk 0:02:59.4]}
2... e6 {[%clk 0:02:59.6]} 3. Nc3 {[%clk 0:02:59.7]} 3... Nf6 {[%clk 0:02:59.6]}
4. Nf3 {[%clk 0:02:59.7]} 4... Be7 {[%clk 0:02:59.4]} 5. Bf4 {[%clk 0:02:59.4]}
5... O-O {[%clk 0:02:59.2]} 6. e3 {[%clk 0:02:59.6]} 6... c6 {[%clk 0:02:58.7]}
7. c5 {[%clk 0:02:54.8]} 7... b6 {[%clk 0:02:55.8]} 8. b4 {[%clk 0:02:54.9]}
8... Nbd7 {[%clk 0:02:51.3]} 9. Bd3 {[%clk 0:02:53.2]} 9... Re8 {[%clk
0:02:41.1]} 10. O-O {[%clk 0:02:51.5]} 10... Nf8 {[%clk 0:02:39.8]} 11. h3
{[%clk 0:02:50.7]} 11... Ng6 {[%clk 0:02:37]} 12. Bh2 {[%clk 0:02:51.2]} 12...
Bf8 {[%clk 0:02:37]} 13. Qc2 {[%clk 0:02:49.2]} 13... bxc5 {[%clk 0:02:29.6]}
14. bxc5 {[%clk 0:02:48.3]} 14... Qa5 {[%clk 0:02:29.2]} 15. Rab1 {[%clk
0:02:39]} 15... Ba6 {[%clk 0:02:22.5]} 16. Bxa6 {[%clk 0:02:34.3]} 16... Qxa6
{[%clk 0:02:22.3]} 17. Rb3 {[%clk 0:02:33.1]} 17... Nd7 {[%clk 0:02:09.6]} 18.
Rfb1 {[%clk 0:02:28.6]} 18... e5 {[%clk 0:02:04.5]} 19. Rb7 {[%clk 0:02:27.8]}
19... Rad8 {[%clk 0:01:59]} 20. Qa4 {[%clk 0:02:17.2]} 20... Qd3 {[%clk
0:01:47.4]} 21. R7b3 {[%clk 0:02:12.9]} 21... exd4 {[%clk 0:01:24.7]} 22. exd4
{[%clk 0:02:11.5]} 22... Bxc5 {[%clk 0:00:52.2]} 23. Nxd5 {[%clk 0:01:49.8]}
23... Qc2 {[%clk 0:00:31.2]} 24. Qxc6 {[%clk 0:01:42.4]} 24... Qxa2 {[%clk
0:00:18.9]} 25. dxc5 {[%clk 0:01:41.7]} 25... Nf6 {[%clk 0:00:14.3]} 26. Nxf6+
{[%clk 0:01:41.3]} 26... gxf6 {[%clk 0:00:14.6]} 27. Qxf6 {[%clk 0:01:41.1]}
27... Qxb3 {[%clk 0:00:14.4]} 28. Qa1 {[%clk 0:01:21]} 28... Qc4 {[%clk
0:00:11.6]} 29. Bd6 {[%clk 0:01:20.7]} 29... Re2 {[%clk 0:00:09.7]} 30. Rc1
{[%clk 0:01:19.4]} 30... Qe6 {[%clk 0:00:08.5]} 31. Qxa7 {[%clk 0:01:16.3]}
31... Rxd6 {[%clk 0:00:07.9]} 32. cxd6 {[%clk 0:01:16.3]} 32... Qxd6 {[%clk
0:00:08.7]} 33. Rc8+ {[%clk 0:01:06.6]} 33... Kg7 {[%clk 0:00:08.8]} 34. Qd4+
{[%clk 0:01:05.4]} 34... Qxd4 {[%clk 0:00:08.5]} 35. Nxd4 {[%clk 0:01:06.3]}
35... Re1+ {[%clk 0:00:08.8]} 36. Kh2 {[%clk 0:01:06.8]} 36... Rd1 {[%clk
0:00:06.6]} 37. Rd8 {[%clk 0:01:01.1]} 37... Kf6 {[%clk 0:00:05.5]} 38. g3
{[%clk 0:00:55.6]} 38... Ra1 {[%clk 0:00:05.2]} 39. Kg2 {[%clk 0:00:55]} 39...
h6 {[%clk 0:00:04.7]} 40. Rb8 {[%clk 0:00:54.1]} 40... Ra2 {[%clk 0:00:04.3]}
41. Rb6+ {[%clk 0:00:54.6]} 41... Kg7 {[%clk 0:00:04.3]} 42. Nf5+ {[%clk
0:00:54.8]} 42... Kh7 {[%clk 0:00:02.9]} 43. h4 {[%clk 0:00:54]} 43... h5 {[%clk
0:00:02.4]} 44. Rb5 {[%clk 0:00:43.2]} 44... Ra7 {[%clk 0:00:02.4]} 45. Nd6
{[%clk 0:00:37.2]} 45... Kh6 {[%clk 0:00:02.6]} 46. Ne4 {[%clk 0:00:37.9]} 46...
Kg7 {[%clk 0:00:01.7]} 47. Rxh5 {[%clk 0:00:37.2]} 47... Re7 {[%clk 0:00:02.6]}
48. Ng5 {[%clk 0:00:33.7]} 48... Re2 {[%clk 0:00:02.3]} 49. Rh7+ {[%clk
0:00:32.7]} 49... Kg8 {[%clk 0:00:02.2]} 50. Rxf7 {[%clk 0:00:33.4]} 50... Ne5
{[%clk 0:00:02.6]} 51. Re7 {[%clk 0:00:31.5]} 51... Kf8 {[%clk 0:00:02.5]} 52.
Re6 {[%clk 0:00:31.8]} 52... Re1 {[%clk 0:00:01.4]} 53. Nf3 {[%clk 0:00:31.3]}
1-0